fUSD/lending_fUSD_20250309
["ID","MTS","AMOUNT","RATE_DAILY","PERIOD"]
[355734162,1741518632201,-225.86,8.384e-05,2]
[355734163,1741518632211,-176.07,8.4e-05,2]
[355734164,1741518632220,-153.99,8.413e-05,2]
[355734165,1741518632229,-153.99,8.45e-05,2]
[355734166,1741518632238,-153.99,8.488e-05,2]
[355734167,1741518632247,-153.99,8.525e-05,2]
[355734168,1741518632256,-153.99,8.562e-05,2]
[355734169,1741518632265,-372.3251,8.909e-05,2]
[355734170,1741518632274,-2500.0,8.956e-05,2]
[355734171,1741518632283,-10625.15,8.976e-05,2]
[355734172,1741518632293,-150.0,8.988e-05,2]
[355734173,1741518632302,-150.0,8.998e-05,2]
[355734174,1741518632311,-29043.42901128,8.999e-05,2]
[355734175,1741518632321,-9363.0912,9.008e-05,2]
[355734176,1741518632330,-298.8855,9.008e-05,2]
[355734177,1741518632339,-397.1099,9.008e-05,2]
[355734178,1741518632349,-5185.5066,9.008e-05,2]
[355734179,1741518632358,-1795.1369,9.008e-05,2]
[355734180,1741518632367,-5016.1023,9.009e-05,2]
[355734181,1741518632378,-4262.3848,9.009e-05,2]
[355734182,1741518632387,-740.3882,9.009e-05,2]
[355734183,1741518632396,-2440.15846645,9.009e-05,2]
[355734184,1741518632407,-1233.41533355,9.009e-05,2]
[355734185,1741518632416,-2943.05663303,9.009e-05,2]
[355734186,1741518635696,-14839.34905105,9.009e-05,2]
[355734187,1741518635750,-4928.78408767,9.009e-05,2]
[355734188,1741518635855,-7441.85600017,9.009e-05,2]
[355734189,1741518635866,-6190.09352808,9.009e-05,2]
[355734190,1741518635875,-866.7607556,9.009e-05,2]
[355734191,1741518635909,-23521.8516436,9.009e-05,2]
[355734192,1741518636019,-299.53052179,9.009e-05,2]
[355734216,1741518637905,-6974.75150094,9.009e-05,2]
[355734217,1741518637917,-2216.76534,9.009e-05,2]
[355734218,1741518638111,-1682.2401957,9.009e-05,2]
[355734219,1741518638123,-8542.90706085,9.009e-05,2]
[355734220,1741518638165,-7566.8192643,9.009e-05,2]
[355734222,1741518638176,-414.26349789,9.009e-05,2]
[355734226,1741518639998,-997.65756837,9.009e-05,2]
[355734227,1741518640056,-426.83,9.009e-05,2]
[355734228,1741518640069,-4861.93574418,9.009e-05,2]
[355734229,1741518640080,-1018.32930406,9.009e-05,2]
[355734230,1741518640219,-10352.21211628,9.009e-05,2]
[355734231,1741518640231,-259.28192865,9.009e-05,2]
[355734232,1741518640257,-135.96135779,9.009e-05,2]
[355734233,1741518640267,-6645.3489,9.01e-05,2]
[355734234,1741518640277,-52.16344554,9.01e-05,2]
[355734235,1741518640295,-258.8204571,9.01e-05,2]
[355734236,1741518640308,-538.49795999,9.01e-05,2]
[355734237,1741518640407,-1747.5,9.01e-05,2]
[355734238,1741518640421,-607.944495,9.01e-05,2]
[355734239,1741518640433,-487.52557497,9.01e-05,2]
[355734240,1741518640445,-400.15737426,9.01e-05,2]
[355734241,1741518640459,-195.65659314,9.01e-05,2]
[355734242,1741518640470,-150.0,9.013e-05,2]
[355734243,1741518640481,-1000.0,9.013e-05,2]
[355734244,1741518640491,-1000.0,9.017e-05,2]
[355734245,1741518640501,-150.0,9.037e-05,2]
[355734246,1741518640510,-420.0,9.04e-05,2]
[355734247,1741518640520,-150.0,9.061e-05,2]
[355734248,1741518640530,-150.0,9.063e-05,2]
[355734249,1741518640541,-150.0,9.069e-05,2]
[355734250,1741518640551,-1000.0,9.07e-05,2]
[355734251,1741518640561,-150.0,9.077e-05,2]
[355734252,1741518640572,-300.0,9.079e-05,2]
[355734253,1741518640582,-191.79840686,9.083e-05,2]
[355734254,1741518640594,-308.20159314,9.083e-05,2]
[355734255,1741518640604,-117.97916186,9.083e-05,2]
[355734269,1741518643067,-382.78565523,9.083e-05,2]
[355734270,1741518643077,-162.60902054,9.083e-05,2]
[355734271,1741518643086,-250.17964307,9.083e-05,2]
[355734272,1741518643096,-150.0,9.083e-05,2]
[355734273,1741518643105,-150.0,9.083e-05,2]
[355734275,1741518643115,-150.0,9.084e-05,2]
[355734276,1741518643125,-150.0,9.091e-05,2]
[355734278,1741518643135,-699.55,9.092e-05,2]
[355734279,1741518643145,-383.33006084,9.093e-05,2]
[355734280,1741518643155,-150.0,9.094e-05,2]
[355734281,1741518643164,-150.0,9.098e-05,2]
[355734282,1741518643174,-1318.0,9.1e-05,2]
[355734283,1741518643184,-501.4707906,9.104e-05,2]
[355734285,1741518643194,-2753.8607564,9.104e-05,2]
[355734286,1741518643204,-1081.25,9.105e-05,2]
[355734287,1741518643214,-1011.88,9.105e-05,2]
[355734288,1741518643224,-651.01,9.105e-05,2]
[355734289,1741518643234,-1195.34,9.105e-05,2]
[355734290,1741518643244,-1611.22,9.105e-05,2]
[355734291,1741518643253,-2242.17,9.105e-05,2]
[355734292,1741518643262,-1495.79,9.105e-05,2]
[355734293,1741518643271,-500.0,9.105e-05,2]
[355734294,1741518643281,-607.11,9.105e-05,2]
[355734295,1741518643290,-91.66630815,9.105e-05,2]
[355734306,1741518644175,-2608.67369185,9.105e-05,2]
[355734307,1741518644185,-1065.41,9.105e-05,2]
[355734308,1741518644195,-1657.04,9.105e-05,2]
[355734309,1741518644204,-500.0,9.105e-05,2]
[355734310,1741518644214,-1090.64,9.105e-05,2]
[355734311,1741518644222,-862.73,9.105e-05,2]
[355734312,1741518644231,-2052.97,9.105e-05,2]
[355734313,1741518644240,-578.4,9.105e-05,2]
[355734314,1741518644249,-801.08,9.105e-05,2]
[355734315,1741518644258,-500.0,9.105e-05,2]
[355734316,1741518644267,-843.76,9.105e-05,2]
[355734317,1741518644276,-1135.56,9.105e-05,2]
[355734318,1741518644285,-500.0,9.105e-05,2]
[355734319,1741518644294,-436.96,9.105e-05,2]
[355734320,1741518644303,-541.59,9.105e-05,2]
[355734321,1741518644312,-4644.11,9.105e-05,2]
[355734322,1741518644321,-500.0,9.105e-05,2]
[355734323,1741518644330,-945.44,9.105e-05,2]
[355734324,1741518644339,-521.97,9.105e-05,2]
[355734325,1741518644348,-702.8,9.105e-05,2]
[355734326,1741518644358,-1396.76,9.105e-05,2]
[355734327,1741518644367,-1123.96,9.105e-05,2]
[355734328,1741518644378,-500.0,9.105e-05,2]
[355734329,1741518644388,-500.0,9.105e-05,2]
[355734330,1741518644397,-515.58730007,9.106e-05,2]
[355734331,1741518644406,-500.0,9.106e-05,2]
[355734332,1741518644415,-500.0,9.106e-05,2]
[355734333,1741518644425,-514.65508764,9.106e-05,2]
[355734334,1741518644434,-510.58269199,9.106e-05,2]
[355734335,1741518644444,-500.0,9.106e-05,2]
[355734336,1741518644455,-241.24263574,9.106e-05,2]
[355734337,1741518644464,-506.34260727,9.106e-05,2]
[355734338,1741518644474,-500.0,9.106e-05,2]
[355734339,1741518644483,-282.80624362,9.106e-05,2]
[355734340,1741518644493,-501.46152028,9.106e-05,2]
[355734341,1741518644502,-500.0,9.106e-05,2]
[355734342,1741518644511,-500.0,9.106e-05,2]
[355734343,1741518644521,-500.0,9.106e-05,2]
[355734344,1741518644530,-500.0,9.106e-05,2]
[355734345,1741518644539,-500.0,9.106e-05,2]
[355734346,1741518644549,-500.0,9.106e-05,2]
[355734347,1741518644559,-500.0,9.106e-05,2]
[355734348,1741518644568,-500.0,9.106e-05,2]
[355734349,1741518644577,-500.0,9.106e-05,2]
[355734350,1741518644587,-500.0,9.106e-05,2]
[355734351,1741518644596,-500.0,9.106e-05,2]
[355734352,1741518644605,-500.0,9.106e-05,2]
[355734353,1741518644615,-500.0,9.106e-05,2]
[355734354,1741518644624,-500.0,9.106e-05,2]
[355734355,1741518644633,-266.528678,9.106e-05,2]
[355734356,1741518644643,-1815.89,9.106e-05,2]
[355734357,1741518644651,-1744.97,9.106e-05,2]
[355734358,1741518644661,-3121.72,9.106e-05,2]
[355734359,1741518644671,-334.657439,9.106e-05,2]
[355734360,1741518644680,-500.0,9.106e-05,2]
[355734361,1741518644691,-500.0,9.106e-05,2]
[355734362,1741518644862,-659.0,9.106e-05,2]
[355734363,1741518644883,-500.0,9.106e-05,2]
[355734364,1741518644893,-807.99,9.106e-05,2]
[355734365,1741518644902,-500.0,9.106e-05,2]
[355734366,1741518644911,-1422.11,9.106e-05,2]
[355734367,1741518644920,-955.51,9.106e-05,2]
[355734368,1741518644932,-1776.85,9.106e-05,2]
[355734369,1741518644942,-999.57,9.106e-05,2]
[355734370,1741518644951,-500.0,9.106e-05,2]
[355734371,1741518644960,-2090.71,9.106e-05,2]
[355734372,1741518644970,-1304.17,9.106e-05,2]
[355734373,1741518644979,-1282.74,9.106e-05,2]
[355734374,1741518644988,-2272.53,9.106e-05,2]
[355734375,1741518644998,-3553.55,9.106e-05,2]
[355734376,1741518645008,-1129.52,9.106e-05,2]
[355734377,1741518645017,-1188.17,9.106e-05,2]
[355734378,1741518645026,-5836.42,9.106e-05,2]
[355734379,1741518645036,-788.32,9.106e-05,2]
[355734380,1741518645045,-500.0,9.106e-05,2]
[355734381,1741518645054,-1083.44,9.106e-05,2]
[355734382,1741518645063,-350.0,9.106e-05,2]
[355734383,1741518645072,-500.0,9.106e-05,2]
[355734384,1741518645081,-942.32,9.106e-05,2]
[355734385,1741518645090,-2843.46,9.106e-05,2]
[355734386,1741518645099,-38953.87112368,9.107e-05,2]
[355734387,1741518645109,-270.09796257,9.107e-05,2]
[355734388,1741518645118,-500.0,9.107e-05,2]
[355734389,1741518645127,-500.0,9.107e-05,2]
[355734390,1741518645136,-500.0,9.107e-05,2]
[355734391,1741518645145,-500.0,9.107e-05,2]
[355734392,1741518645154,-500.0,9.107e-05,2]
[355734393,1741518645163,-500.0,9.107e-05,2]
[355734394,1741518645173,-500.0,9.107e-05,2]
[355734395,1741518645182,-500.0,9.107e-05,2]
[355734396,1741518645191,-500.0,9.107e-05,2]
[355734397,1741518645200,-500.0,9.107e-05,2]
[355734398,1741518645210,-500.0,9.107e-05,2]
[355734399,1741518645219,-500.0,9.107e-05,2]
[355734400,1741518645228,-500.0,9.107e-05,2]
[355734401,1741518645238,-500.0,9.107e-05,2]
[355734402,1741518645247,-181.42037216,9.107e-05,2]
[355734403,1741518645256,-500.0,9.107e-05,2]
[355734404,1741518645264,-500.0,9.107e-05,2]
[355734405,1741518645274,-500.0,9.107e-05,2]
[355734406,1741518645283,-500.0,9.107e-05,2]
[355734407,1741518645291,-500.0,9.107e-05,2]
[355734408,1741518645301,-500.0,9.107e-05,2]
[355734409,1741518645310,-500.0,9.107e-05,2]
[355734410,1741518645319,-500.0,9.107e-05,2]
[355734411,1741518645328,-500.0,9.107e-05,2]
[355734412,1741518645337,-500.0,9.107e-05,2]
[355734413,1741518645347,-500.0,9.107e-05,2]
[355734414,1741518645356,-605.40080047,9.107e-05,2]
[355734415,1741518645365,-500.0,9.107e-05,2]
[355734416,1741518645374,-500.0,9.107e-05,2]
[355734417,1741518645383,-500.0,9.107e-05,2]
[355734418,1741518645393,-500.0,9.107e-05,2]
[355734419,1741518645402,-500.0,9.107e-05,2]
[355734420,1741518645411,-500.0,9.107e-05,2]
[355734421,1741518645420,-500.0,9.107e-05,2]
[355734422,1741518645430,-500.0,9.107e-05,2]
[355734423,1741518645439,-500.97681596,9.107e-05,2]
[355734424,1741518645449,-500.0,9.107e-05,2]
[355734425,1741518645459,-500.0,9.107e-05,2]
[355734426,1741518645468,-500.0,9.107e-05,2]
[355734427,1741518645477,-500.0,9.107e-05,2]
[355734428,1741518645487,-500.0,9.107e-05,2]
[355734429,1741518645495,-500.0,9.107e-05,2]
[355734430,1741518645505,-500.0,9.107e-05,2]
[355734431,1741518645514,-350.67230341,9.107e-05,2]
[355734432,1741518645524,-500.0,9.107e-05,2]
[355734433,1741518645533,-500.0,9.107e-05,2]
[355734434,1741518645543,-500.0,9.107e-05,2]
[355734435,1741518645551,-500.0,9.107e-05,2]
[355734436,1741518645560,-500.0,9.107e-05,2]
[355734437,1741518645570,-500.0,9.107e-05,2]
[355734438,1741518645580,-500.0,9.107e-05,2]
[355734439,1741518645589,-500.0,9.107e-05,2]
[355734440,1741518645598,-500.0,9.107e-05,2]
[355734441,1741518645607,-500.0,9.107e-05,2]
[355734442,1741518645617,-500.99782048,9.107e-05,2]
[355734443,1741518645626,-500.0,9.107e-05,2]
[355734444,1741518645635,-225.75613287,9.107e-05,2]
[355734445,1741518645645,-500.0,9.107e-05,2]
[355734446,1741518645655,-500.0,9.107e-05,2]
[355734447,1741518645664,-262.04448338,9.107e-05,2]
[355734448,1741518645673,-500.0,9.107e-05,2]
[355734449,1741518645683,-500.0,9.107e-05,2]
[355734450,1741518645692,-500.0,9.107e-05,2]
[355734451,1741518645701,-500.0,9.107e-05,2]
[355734452,1741518645711,-634.86,9.107e-05,2]
[355734453,1741518645720,-500.0,9.107e-05,2]
[355734454,1741518645729,-500.0,9.107e-05,2]
[355734456,1741518645738,-500.0,9.107e-05,2]
[355734457,1741518645747,-500.0,9.107e-05,2]
[355734458,1741518645756,-500.0,9.107e-05,2]
[355734459,1741518645765,-500.0,9.107e-05,2]
[355734460,1741518645774,-513.8653421,9.107e-05,2]
[355734461,1741518645783,-500.0,9.107e-05,2]
[355734462,1741518645793,-531.88,9.107e-05,2]
[355734464,1741518645802,-515.55778098,9.107e-05,2]
[355734465,1741518645811,-500.0,9.107e-05,2]
[355734466,1741518645820,-510.35281274,9.107e-05,2]
[355734467,1741518645830,-500.0,9.107e-05,2]
[355734468,1741518645839,-500.0,9.107e-05,2]
[355734469,1741518645848,-870.79,9.107e-05,2]
[355734470,1741518645857,-500.0,9.107e-05,2]
[355734471,1741518645866,-500.0,9.107e-05,2]
[355734472,1741518645875,-500.0,9.107e-05,2]
[355734473,1741518645884,-500.0,9.107e-05,2]
[355734474,1741518645893,-500.0,9.107e-05,2]
[355734475,1741518645902,-500.0,9.107e-05,2]
[355734476,1741518645911,-695.37,9.107e-05,2]
[355734477,1741518645920,-762.31,9.107e-05,2]
[355734478,1741518645930,-532.26,9.107e-05,2]
[355734479,1741518645941,-519.14,9.107e-05,2]
[355734480,1741518645951,-500.0,9.107e-05,2]
[355734481,1741518645961,-500.0,9.107e-05,2]
[355734482,1741518645970,-611.45,9.107e-05,2]
[355734483,1741518645980,-512.24,9.107e-05,2]
[355734484,1741518645989,-554.46,9.107e-05,2]
[355734485,1741518645998,-552.45,9.107e-05,2]
[355734486,1741518646008,-500.0,9.107e-05,2]
[355734487,1741518646021,-395.86,9.107e-05,2]
[355734488,1741518646031,-500.0,9.107e-05,2]
[355734489,1741518646040,-500.0,9.107e-05,2]
[355734490,1741518646049,-626.02,9.107e-05,2]
[355734491,1741518646058,-730.2,9.107e-05,2]
[355734492,1741518646067,-500.0,9.107e-05,2]
[355734493,1741518646076,-500.0,9.107e-05,2]
[355734494,1741518646086,-500.0,9.107e-05,2]
[355734495,1741518646095,-597.92,9.107e-05,2]
[355734496,1741518646103,-166.892975,9.107e-05,2]
[355734497,1741518646113,-166.892975,9.107e-05,2]
[355734498,1741518646122,-633.65,9.107e-05,2]
[355734499,1741518646131,-3600.45,9.107e-05,2]
[355734500,1741518646140,-660.04,9.107e-05,2]
[355734501,1741518646149,-293.213403,9.107e-05,2]
[355734502,1741518646158,-646.344239,9.107e-05,2]
[355734503,1741518646167,-293.213403,9.107e-05,2]
[355734504,1741518646176,-646.344239,9.107e-05,2]
[355734505,1741518646186,-1275.82,9.107e-05,2]
[355734506,1741518646196,-1104.74,9.107e-05,2]
[355734507,1741518646205,-500.0,9.107e-05,2]
[355734508,1741518646214,-7621.05,9.107e-05,2]
[355734509,1741518646224,-2521.36,9.107e-05,2]
[355734510,1741518646233,-500.0,9.107e-05,2]
[355734511,1741518646242,-500.0,9.107e-05,2]
[355734512,1741518646251,-832.08,9.107e-05,2]
[355734513,1741518646260,-1300.52,9.107e-05,2]
[355734514,1741518646269,-1894.32,9.107e-05,2]
[355734515,1741518646279,-602.81,9.107e-05,2]
[355734516,1741518646288,-500.0,9.107e-05,2]
[355734517,1741518646297,-1691.32,9.107e-05,2]
[355734518,1741518646306,-500.0,9.107e-05,2]
[355734519,1741518646315,-1397.07,9.107e-05,2]
[355734520,1741518646324,-831.46,9.107e-05,2]
[355734521,1741518646334,-500.0,9.107e-05,2]
[355734522,1741518646343,-1546.46651,9.107e-05,2]
[355734523,1741518646352,-1526.33,9.107e-05,2]
[355734524,1741518646362,-500.0,9.107e-05,2]
[355734525,1741518646371,-1546.46651,9.107e-05,2]
[355734526,1741518646380,-202.33333212,9.107e-05,2]
[355734527,1741518646390,-500.0,9.107e-05,2]
[355734529,1741518646399,-1119.76,9.107e-05,2]
[355734530,1741518646408,-1372.97,9.107e-05,2]
[355734531,1741518646417,-597.1,9.107e-05,2]
[355734532,1741518646426,-500.0,9.107e-05,2]
[355734533,1741518646435,-2836.99,9.107e-05,2]
[355734534,1741518646445,-836.89,9.107e-05,2]
[355734536,1741518646455,-1116.41,9.107e-05,2]
[355734538,1741518646465,-151.0,9.107e-05,2]
[355734539,1741518646474,-506.88,9.107e-05,2]
[355734540,1741518646483,-525.31,9.107e-05,2]
[355734541,1741518646492,-500.0,9.107e-05,2]
[355734542,1741518646503,-606.72,9.107e-05,2]
[355734543,1741518646512,-544.19,9.107e-05,2]
[355734544,1741518646521,-3033.406466,9.107e-05,2]
[355734545,1741518646531,-513.17,9.107e-05,2]
[355734546,1741518646540,-761.75,9.107e-05,2]
[355734547,1741518646548,-3033.406466,9.107e-05,2]
[355734549,1741518646558,-500.0,9.107e-05,2]
[355734550,1741518646567,-1802.1,9.107e-05,2]
[355734551,1741518646576,-501.96,9.107e-05,2]
[355734552,1741518646585,-818.99,9.107e-05,2]
[355734553,1741518646595,-500.0,9.107e-05,2]
[355734554,1741518646603,-500.0,9.107e-05,2]
[355734555,1741518646613,-920.42,9.107e-05,2]
[355734556,1741518646622,-935.02,9.107e-05,2]
[355734557,1741518646631,-1277.98,9.107e-05,2]
[355734558,1741518646640,-1183.16,9.107e-05,2]
[355734559,1741518646649,-500.0,9.107e-05,2]
[355734560,1741518646658,-1996.91,9.107e-05,2]
[355734561,1741518646667,-1856.54,9.107e-05,2]
[355734562,1741518646675,-1785.183568,9.107e-05,2]
[355734563,1741518646684,-10452.39,9.107e-05,2]
[355734564,1741518646693,-1785.183568,9.107e-05,2]
[355734565,1741518646702,-500.0,9.107e-05,2]
[355734566,1741518646711,-500.0,9.107e-05,2]
[355734567,1741518646720,-500.0,9.107e-05,2]
[355734568,1741518646729,-994.75,9.107e-05,2]
[355734569,1741518646738,-197.380871,9.107e-05,2]
[355734570,1741518646747,-197.380871,9.107e-05,2]
[355734571,1741518646756,-500.0,9.107e-05,2]
[355734572,1741518646765,-646.38,9.107e-05,2]
[355734573,1741518646774,-500.0,9.107e-05,2]
[355734574,1741518646783,-500.0,9.107e-05,2]
[355734575,1741518646792,-519.76251664,9.107e-05,2]
[355734576,1741518646801,-500.0,9.107e-05,2]
[355734577,1741518646811,-500.0,9.107e-05,2]
[355734578,1741518646820,-151.0,9.108e-05,2]
[355734579,1741518646828,-151.0,9.108e-05,2]
[355734580,1741518646838,-151.0,9.108e-05,2]
[355734581,1741518646847,-151.0,9.108e-05,2]
[355734582,1741518646856,-594.552637,9.108e-05,2]
[355734583,1741518646865,-151.0,9.108e-05,2]
[355734584,1741518646875,-594.552637,9.108e-05,2]
[355734585,1741518646884,-500.0,9.108e-05,2]
[355734586,1741518646894,-151.0,9.108e-05,2]
[355734587,1741518646903,-500.0,9.108e-05,2]
[355734588,1741518646912,-334.873557,9.108e-05,2]
[355734589,1741518646921,-500.0,9.108e-05,2]
[355734590,1741518646931,-334.873557,9.108e-05,2]
[355734591,1741518646945,-500.0,9.108e-05,2]
[355734592,1741518646955,-500.0,9.108e-05,2]
[355734593,1741518646964,-500.0,9.108e-05,2]
[355734594,1741518646973,-151.0,9.108e-05,2]
[355734595,1741518646984,-151.0,9.108e-05,2]
[355734596,1741518646993,-151.0,9.108e-05,2]
[355734597,1741518647003,-151.0,9.108e-05,2]
[355734598,1741518647012,-151.0,9.108e-05,2]
[355734599,1741518647021,-151.0,9.108e-05,2]
[355734600,1741518647030,-253.433588,9.108e-05,2]
[355734601,1741518647039,-151.0,9.108e-05,2]
[355734602,1741518647048,-253.433588,9.108e-05,2]
[355734603,1741518647057,-500.0,9.108e-05,2]
[355734604,1741518647066,-151.0,9.108e-05,2]
[355734605,1741518647075,-151.0,9.108e-05,2]
[355734606,1741518647085,-858.62,9.108e-05,2]
[355734607,1741518647094,-151.0,9.108e-05,2]
[355734608,1741518647103,-153.814034,9.108e-05,2]
[355734609,1741518647112,-151.0,9.108e-05,2]
[355734610,1741518647121,-500.0,9.108e-05,2]
[355734611,1741518647130,-725.496326,9.108e-05,2]
[355734612,1741518647140,-151.0,9.108e-05,2]
[355734613,1741518647150,-725.496326,9.108e-05,2]
[355734614,1741518647159,-155.431524,9.108e-05,2]
[355734615,1741518647168,-155.431524,9.108e-05,2]
[355734616,1741518647177,-707.97,9.108e-05,2]
[355734617,1741518647186,-155.431524,9.108e-05,2]
[355734618,1741518647196,-155.431524,9.108e-05,2]
[355734619,1741518647206,-500.0,9.108e-05,2]
[355734620,1741518647215,-166.892975,9.108e-05,2]
[355734621,1741518647224,-166.892975,9.108e-05,2]
[355734622,1741518647233,-166.892975,9.108e-05,2]
[355734623,1741518647242,-166.892975,9.108e-05,2]
[355734624,1741518647251,-293.213403,9.108e-05,2]
[355734625,1741518647260,-646.344239,9.108e-05,2]
[355734626,1741518647270,-293.213403,9.108e-05,2]
[355734627,1741518647279,-646.344239,9.108e-05,2]
[355734628,1741518647287,-293.213403,9.108e-05,2]
[355734629,1741518647297,-293.213403,9.108e-05,2]
[355734630,1741518647306,-646.344239,9.108e-05,2]
[355734631,1741518647315,-646.344239,9.108e-05,2]
[355734632,1741518647323,-286.487842,9.108e-05,2]
[355734633,1741518647332,-286.487842,9.108e-05,2]
[355734634,1741518647342,-286.487842,9.108e-05,2]
[355734635,1741518647351,-286.487842,9.108e-05,2]
[355734636,1741518647359,-1546.46651,9.108e-05,2]
[355734637,1741518647369,-1546.46651,9.108e-05,2]
[355734638,1741518647378,-151.0,9.108e-05,2]
[355734639,1741518647387,-151.0,9.108e-05,2]
[355734640,1741518647396,-3033.406466,9.108e-05,2]
[355734641,1741518647405,-3033.406466,9.108e-05,2]
[355734642,1741518647414,-3033.406466,9.108e-05,2]
[355734643,1741518647423,-3033.406466,9.108e-05,2]
[355734644,1741518647433,-354.171307,9.108e-05,2]
[355734645,1741518647443,-354.171307,9.108e-05,2]
[355734646,1741518647454,-354.171307,9.108e-05,2]
[355734647,1741518647463,-354.171307,9.108e-05,2]
[355734648,1741518647473,-1785.183568,9.108e-05,2]
[355734649,1741518647482,-1785.183568,9.108e-05,2]
[355734650,1741518647492,-205.552269,9.108e-05,2]
[355734651,1741518647502,-205.552269,9.108e-05,2]
[355734652,1741518647511,-197.380871,9.108e-05,2]
[355734653,1741518647521,-197.380871,9.108e-05,2]
[355734654,1741518647530,-500.0,9.109e-05,2]
[355734655,1741518647540,-515.93746193,9.109e-05,2]
[355734656,1741518647550,-500.0,9.109e-05,2]
[355734657,1741518647559,-505.5610877,9.109e-05,2]
[355734658,1741518647569,-500.3460043,9.109e-05,2]
[355734659,1741518647578,-500.0,9.109e-05,2]
[355734660,1741518647588,-504.36745733,9.109e-05,2]
[355734661,1741518647597,-151.0,9.109e-05,2]
[355734662,1741518647607,-244.387413,9.109e-05,2]
[355734663,1741518647616,-244.387413,9.109e-05,2]
[355734664,1741518647626,-383.058825,9.109e-05,2]
[355734665,1741518647635,-383.058825,9.109e-05,2]
[355734666,1741518647644,-151.0,9.109e-05,2]
[355734667,1741518647654,-151.0,9.109e-05,2]
[355734668,1741518647663,-151.0,9.109e-05,2]
[355734669,1741518647673,-156.175057,9.109e-05,2]
[355734670,1741518647682,-151.0,9.109e-05,2]
[355734671,1741518647693,-151.0,9.109e-05,2]
[355734672,1741518647703,-160.080368,9.109e-05,2]
[355734673,1741518647713,-594.552637,9.109e-05,2]
[355734674,1741518647722,-594.552637,9.109e-05,2]
[355734675,1741518647732,-151.0,9.109e-05,2]
[355734676,1741518647742,-151.0,9.109e-05,2]
[355734677,1741518647751,-594.552637,9.109e-05,2]
[355734678,1741518647761,-594.552637,9.109e-05,2]
[355734679,1741518647770,-151.0,9.109e-05,2]
[355734680,1741518647780,-151.0,9.109e-05,2]
[355734681,1741518647789,-334.873557,9.109e-05,2]
[355734682,1741518647797,-334.873557,9.109e-05,2]
[355734683,1741518647807,-151.0,9.109e-05,2]
[355734684,1741518647816,-151.0,9.109e-05,2]
[355734685,1741518647826,-151.0,9.109e-05,2]
[355734686,1741518647835,-151.0,9.109e-05,2]
[355734687,1741518647845,-151.0,9.109e-05,2]
[355734688,1741518647855,-151.0,9.109e-05,2]
[355734689,1741518647865,-151.0,9.109e-05,2]
[355734690,1741518647874,-151.0,9.109e-05,2]
[355734691,1741518647884,-151.0,9.109e-05,2]
[355734692,1741518647893,-151.0,9.109e-05,2]
[355734693,1741518647903,-253.433588,9.109e-05,2]
[355734694,1741518647912,-253.433588,9.109e-05,2]
[355734695,1741518647921,-151.0,9.109e-05,2]
[355734696,1741518647933,-151.0,9.109e-05,2]
[355734697,1741518647944,-253.433588,9.109e-05,2]
[355734698,1741518647954,-253.433588,9.109e-05,2]
[355734699,1741518647964,-151.0,9.109e-05,2]
[355734700,1741518647975,-151.0,9.109e-05,2]
[355734701,1741518647984,-151.0,9.109e-05,2]
[355734702,1741518647994,-725.496326,9.109e-05,2]
[355734703,1741518648003,-151.0,9.109e-05,2]
[355734704,1741518648014,-725.496326,9.109e-05,2]
[355734705,1741518648025,-151.0,9.109e-05,2]
[355734706,1741518648036,-725.496326,9.109e-05,2]
[355734707,1741518648045,-725.496326,9.109e-05,2]
[355734708,1741518648055,-155.431524,9.109e-05,2]
[355734709,1741518648064,-155.431524,9.109e-05,2]
[355734710,1741518648073,-286.487842,9.109e-05,2]
[355734711,1741518648084,-286.487842,9.109e-05,2]
[355734712,1741518648094,-1546.46651,9.109e-05,2]
[355734713,1741518648105,-1546.46651,9.109e-05,2]
[355734714,1741518648115,-150.0,9.109e-05,2]
[355734715,1741518648124,-354.171307,9.109e-05,2]
[355734716,1741518648134,-354.171307,9.109e-05,2]
[355734717,1741518648144,-1785.183568,9.109e-05,2]
[355734718,1741518648154,-1785.183568,9.109e-05,2]
[355734719,1741518648164,-205.552269,9.109e-05,2]
[355734720,1741518648174,-205.552269,9.109e-05,2]